fUSD/lending_fUSD_20250504
["ID","MTS","AMOUNT","RATE_DAILY","PERIOD"]
[359840195,1746366640910,-500.0,0.00019726,2]
[359840197,1746366640920,-450.0,0.00019726,2]
[359840199,1746366640931,-500.0,0.00019726,2]
[359840201,1746366640941,-450.0,0.00019726,2]
[359840204,1746366640951,-299.1856,0.00019726,2]
[359840206,1746366640962,-450.0,0.00019726,2]
[359840208,1746366640973,-490.0,0.00019726,2]
[359840210,1746366640983,-450.0,0.00019726,2]
[359840212,1746366640993,-450.0,0.00019726,2]
[359840214,1746366641004,-450.0,0.00019726,2]
[359840244,1746366641275,-450.0,0.00019726,2]
[359840246,1746366641289,-490.0,0.00019726,2]
[359840248,1746366641298,-450.0,0.00019726,2]
[359840251,1746366641315,-450.0,0.00019726,2]
[359840253,1746366641328,-490.0,0.00019726,2]
[359840255,1746366641338,-450.0,0.00019726,2]
[359840257,1746366641348,-450.0,0.00019726,2]
[359840259,1746366641358,-450.0,0.00019726,2]
[359840261,1746366641368,-450.0,0.00019726,2]
[359840263,1746366641377,-372.46769248,0.00019726,2]
[359840265,1746366641387,-470.0,0.00019726,2]
[359840266,1746366641396,-450.0,0.00019726,2]
[359840267,1746366641406,-521.05,0.00019726,2]
[359840268,1746366641415,-450.0,0.00019726,2]
[359840269,1746366641426,-450.0,0.00019726,2]
[359840270,1746366641435,-500.0,0.00019726,2]
[359840271,1746366641444,-526.48,0.00019726,2]
[359840272,1746366641454,-450.0,0.00019726,2]
[359840273,1746366641463,-470.0,0.00019726,2]
[359840274,1746366641473,-450.0,0.00019726,2]
[359840275,1746366641483,-215.97,0.00019726,2]
[359840276,1746366641493,-450.0,0.00019726,2]
[359840277,1746366641503,-450.0,0.00019726,2]
[359840278,1746366641513,-470.0,0.00019726,2]
[359840279,1746366641522,-551.88,0.00019726,2]
[359840280,1746366641532,-483.22,0.00019726,2]
[359840281,1746366641542,-450.0,0.00019726,2]
[359840282,1746366641552,-450.0,0.00019726,2]
[359840283,1746366641562,-470.0,0.00019726,2]
[359840284,1746366641572,-450.0,0.00019726,2]
[359840285,1746366641582,-450.0,0.00019726,2]
[359840286,1746366641591,-450.0,0.00019726,2]
[359840287,1746366641601,-450.0,0.00019726,2]
[359840288,1746366641611,-450.0,0.00019726,2]
[359840289,1746366641621,-470.0,0.00019726,2]
[359840290,1746366641632,-450.0,0.00019726,2]
[359840291,1746366641641,-450.0,0.00019726,2]
[359840292,1746366641651,-450.0,0.00019726,2]
[359840293,1746366641661,-450.0,0.00019726,2]
[359840294,1746366641670,-470.0,0.00019726,2]
[359840295,1746366641680,-450.0,0.00019726,2]
[359840296,1746366641689,-450.0,0.00019726,2]
[359840297,1746366641698,-482.0,0.00019726,2]
[359840298,1746366641708,-470.0,0.00019726,2]
[359840299,1746366641717,-450.0,0.00019726,2]
[359840300,1746366641727,-450.0,0.00019726,2]
[359840301,1746366641736,-450.0,0.00019726,2]
[359840302,1746366641746,-450.0,0.00019726,2]
[359840303,1746366641755,-213.91,0.00019726,2]
[359840304,1746366641765,-450.0,0.00019726,2]
[359840305,1746366641774,-450.0,0.00019726,2]
[359840306,1746366641783,-563.52,0.00019726,2]
[359840307,1746366641793,-470.0,0.00019726,2]
[359840308,1746366641803,-450.0,0.00019726,2]
[359840309,1746366641812,-470.0,0.00019726,2]
[359840310,1746366641822,-450.0,0.00019726,2]
[359840311,1746366641831,-450.0,0.00019726,2]
[359840312,1746366641841,-450.0,0.00019726,2]
[359840313,1746366641850,-470.0,0.00019726,2]
[359840314,1746366641860,-470.0,0.00019726,2]
[359840315,1746366641870,-450.0,0.00019726,2]
[359840316,1746366641879,-450.0,0.00019726,2]
[359840317,1746366641889,-394.92,0.00019726,2]
[359840318,1746366641898,-450.0,0.00019726,2]
[359840319,1746366641908,-450.0,0.00019726,2]
[359840320,1746366641918,-478.41753717,0.00019726,2]
[359840321,1746366641927,-450.0,0.00019726,2]
[359840322,1746366641937,-450.0,0.00019726,2]
[359840323,1746366641948,-450.0,0.00019726,2]
[359840324,1746366641957,-500.0,0.00019726,2]
[359840325,1746366641967,-450.0,0.00019726,2]
[359840326,1746366641976,-490.0,0.00019726,2]
[359840327,1746366641986,-500.0,0.00019726,2]
[359840328,1746366641996,-450.0,0.00019726,2]
[359840329,1746366642006,-450.0,0.00019726,2]
[359840330,1746366642016,-450.0,0.00019726,2]
[359840331,1746366642026,-250.0,0.00019726,2]
[359840332,1746366642036,-450.0,0.00019726,2]
[359840333,1746366642049,-450.0,0.00019726,2]
[359840334,1746366642059,-450.0,0.00019726,2]
[359840335,1746366642070,-450.0,0.00019726,2]
[359840336,1746366642079,-450.0,0.00019726,2]
[359840337,1746366642090,-450.0,0.00019726,2]
[359840338,1746366642099,-837.11,0.00019726,2]
[359840339,1746366642109,-500.0,0.00019726,2]
[359840340,1746366642119,-450.0,0.00019726,2]
[359840341,1746366642129,-490.0,0.00019726,2]
[359840342,1746366642139,-16859.5,0.00019726,2]
[359840343,1746366642148,-450.0,0.00019726,2]
[359840344,1746366642158,-520.47,0.00019726,2]
[359840345,1746366642168,-967.44,0.00019726,2]
[359840346,1746366642178,-450.0,0.00019726,2]
[359840347,1746366642188,-498.76764661,0.00019726,2]
[359840348,1746366642197,-3070.27,0.00019726,2]
[359840349,1746366642207,-179.3207823,0.00019726,2]
[359840350,1746366642216,-450.0,0.00019726,2]
[359840351,1746366642227,-781.8,0.00019726,2]
[359840352,1746366642237,-450.0,0.00019726,2]
[359840353,1746366642247,-450.0,0.00019726,2]
[359840354,1746366642256,-450.0,0.00019726,2]
[359840355,1746366642266,-450.0,0.00019726,2]
[359840356,1746366642275,-450.0,0.00019726,2]
[359840357,1746366642285,-450.0,0.00019726,2]
[359840358,1746366642295,-450.0,0.00019726,2]
[359840359,1746366642305,-2760.02,0.00019726,2]
[359840360,1746366642314,-450.0,0.00019726,2]
[359840361,1746366642324,-450.0,0.00019726,2]
[359840362,1746366642334,-450.0,0.00019726,2]
[359840363,1746366642343,-450.0,0.00019726,2]
[359840364,1746366642353,-450.0,0.00019726,2]
[359840365,1746366642362,-450.0,0.00019726,2]
[359840366,1746366642372,-450.0,0.00019726,2]
[359840367,1746366642381,-450.0,0.00019726,2]
[359840368,1746366642391,-450.0,0.00019726,2]
[359840369,1746366642400,-450.0,0.00019726,2]
[359840370,1746366642410,-450.0,0.00019726,2]
[359840371,1746366642419,-450.0,0.00019726,2]
[359840372,1746366642429,-450.0,0.00019726,2]
[359840373,1746366642438,-450.0,0.00019726,2]
[359840374,1746366642447,-334.36,0.00019726,2]
[359840375,1746366642458,-1313.76,0.00019726,2]
[359840376,1746366642467,-451.31,0.00019726,2]
[359840377,1746366642477,-500.0,0.00019726,2]
[359840378,1746366642487,-450.0,0.00019726,2]
[359840379,1746366642497,-590.56,0.00019726,2]
[359840380,1746366642506,-450.0,0.00019726,2]
[359840381,1746366642516,-450.0,0.00019726,2]
[359840382,1746366642526,-291.92,0.00019726,2]
[359840383,1746366642535,-526.64,0.00019726,2]
[359840384,1746366642545,-221.71,0.00019726,2]
[359840385,1746366642554,-450.0,0.00019726,2]
[359840386,1746366642564,-450.0,0.00019726,2]
[359840387,1746366642574,-450.0,0.00019726,2]
[359840388,1746366642584,-450.0,0.00019726,2]
[359840389,1746366642594,-161.18162203,0.00019726,2]
[359840390,1746366642603,-450.0,0.00019726,2]
[359840391,1746366642613,-208.32941913,0.00019726,2]
[359840392,1746366642622,-450.0,0.00019726,2]
[359840393,1746366642632,-450.0,0.00019726,2]
[359840394,1746366642641,-1282.15,0.00019726,2]
[359840395,1746366642651,-450.0,0.00019726,2]
[359840396,1746366642660,-450.0,0.00019726,2]
[359840397,1746366642670,-450.0,0.00019726,2]
[359840398,1746366642679,-450.0,0.00019726,2]
[359840399,1746366642689,-450.0,0.00019726,2]
[359840400,1746366642698,-30616.38,0.00019726,2]
[359840401,1746366642708,-1726.27,0.00019726,2]
[359840402,1746366642718,-450.0,0.00019726,2]
[359840403,1746366642727,-450.0,0.00019726,2]
[359840404,1746366642736,-450.0,0.00019726,2]
[359840405,1746366642746,-500.0,0.00019726,2]
[359840406,1746366642755,-450.0,0.00019726,2]
[359840407,1746366642765,-532.29,0.00019726,2]
[359840408,1746366642775,-450.0,0.00019726,2]
[359840409,1746366642784,-450.0,0.00019726,2]
[359840410,1746366642794,-450.0,0.00019726,2]
[359840411,1746366642804,-260.03,0.00019726,2]
[359840412,1746366642814,-450.0,0.00019726,2]
[359840413,1746366642823,-512.41,0.00019726,2]
[359840414,1746366642833,-450.0,0.00019726,2]
[359840415,1746366642842,-567.3,0.00019726,2]
[359840416,1746366642851,-450.0,0.00019726,2]
[359840417,1746366642861,-450.0,0.00019726,2]
[359840418,1746366642870,-450.0,0.00019726,2]
[359840419,1746366642879,-450.0,0.00019726,2]
[359840420,1746366642889,-1478.08,0.00019726,2]
[359840421,1746366642898,-450.0,0.00019726,2]
[359840422,1746366642907,-450.0,0.00019726,2]
[359840423,1746366642916,-450.0,0.00019726,2]
[359840424,1746366642926,-450.0,0.00019726,2]
[359840425,1746366642935,-609.91,0.00019726,2]
[359840426,1746366642945,-450.0,0.00019726,2]
[359840427,1746366642954,-450.0,0.00019726,2]
[359840428,1746366642963,-492.61,0.00019726,2]
[359840429,1746366642973,-547.59,0.00019726,2]
[359840430,1746366642982,-450.0,0.00019726,2]
[359840431,1746366642992,-450.0,0.00019726,2]
[359840432,1746366643001,-450.0,0.00019726,2]
[359840433,1746366643011,-1209.53,0.00019726,2]
[359840434,1746366643020,-157.54231077,0.00019726,2]
[359840435,1746366643030,-450.0,0.00019726,2]
[359840436,1746366643040,-450.0,0.00019726,2]
[359840437,1746366643052,-450.0,0.00019726,2]
[359840438,1746366643061,-450.0,0.00019726,2]
[359840439,1746366643071,-450.0,0.00019726,2]
[359840440,1746366643081,-198.03551519,0.00019726,2]
[359840441,1746366643091,-450.0,0.00019726,2]
[359840442,1746366643100,-450.0,0.00019726,2]
[359840443,1746366643110,-450.0,0.00019726,2]
[359840444,1746366643120,-450.0,0.00019726,2]
[359840445,1746366643130,-554.45,0.00019726,2]
[359840446,1746366643140,-465.1676362,0.00019726,2]
[359840447,1746366643149,-1267.04,0.00019726,2]
[359840448,1746366643159,-376.35994099,0.00019726,2]
[359840449,1746366643169,-450.0,0.00019726,2]
[359840450,1746366643180,-450.0,0.00019726,2]
[359840451,1746366643190,-450.0,0.00019726,2]
[359840452,1746366643199,-450.0,0.00019726,2]
[359840453,1746366643208,-450.0,0.00019726,2]
[359840454,1746366643217,-450.0,0.00019726,2]
[359840455,1746366643227,-470.0,0.00019726,2]
[359840456,1746366643237,-450.0,0.00019726,2]
[359840457,1746366643246,-450.0,0.00019726,2]
[359840458,1746366643255,-450.0,0.00019726,2]
[359840459,1746366643264,-450.0,0.00019726,2]
[359840460,1746366643274,-450.0,0.00019726,2]
[359840461,1746366643284,-450.0,0.00019726,2]
[359840462,1746366643295,-376.20368502,0.00019726,2]
[359840463,1746366643305,-450.0,0.00019726,2]
[359840464,1746366643314,-450.0,0.00019726,2]
[359840465,1746366643324,-450.0,0.00019726,2]
[359840466,1746366643333,-450.0,0.00019726,2]
[359840467,1746366643343,-450.0,0.00019726,2]
[359840468,1746366643353,-450.0,0.00019726,2]
[359840469,1746366643363,-450.0,0.00019726,2]
[359840470,1746366643373,-377.0,0.00019726,2]
[359840471,1746366643383,-1948.91872391,0.00019741,2]
[359840472,1746366643394,-6253.08103099,0.00019748,2]
[359840473,1746366643404,-556.17257505,0.00019752,2]
[359840474,1746366643414,-500.0,0.00019752,2]
[359840475,1746366643423,-186.21126689,0.00019752,2]
[359840476,1746366643433,-500.0,0.00019752,2]
[359840477,1746366643442,-500.0,0.00019752,2]
[359840478,1746366643452,-500.0,0.00019752,2]
[359840479,1746366643462,-579.83246673,0.00019753,2]
[359840480,1746366643471,-450.0,0.00019753,2]
[359840481,1746366643482,-470.0,0.00019753,2]
[359840482,1746366643492,-474.94907018,0.00019753,2]
[359840483,1746366643502,-450.0,0.00019753,2]
[359840484,1746366643511,-450.0,0.00019753,2]
[359840485,1746366643520,-450.0,0.00019753,2]
[359840486,1746366643530,-450.0,0.00019753,2]
[359840487,1746366643540,-239.41400175,0.00019753,2]
[359840488,1746366643550,-450.0,0.00019753,2]
[359840489,1746366643560,-289.39,0.00019753,2]
[359840490,1746366643569,-450.0,0.00019753,2]
[359840491,1746366643579,-450.0,0.00019753,2]
[359840492,1746366643588,-261.21,0.00019753,2]
[359840493,1746366643598,-470.0,0.00019753,2]
[359840494,1746366643607,-450.0,0.00019753,2]
[359840495,1746366643617,-526.48,0.00019753,2]
[359840496,1746366643626,-450.0,0.00019753,2]
[359840497,1746366643635,-450.0,0.00019753,2]
[359840498,1746366643645,-483.22,0.00019753,2]
[359840499,1746366643654,-459.47,0.00019753,2]
[359840500,1746366643664,-470.0,0.00019753,2]
[359840501,1746366643673,-278.6,0.00019753,2]
[359840502,1746366643682,-164.35,0.00019753,2]
[359840503,1746366643692,-450.0,0.00019753,2]
[359840504,1746366643701,-450.0,0.00019753,2]
[359840505,1746366643710,-450.0,0.00019753,2]
[359840506,1746366643719,-450.0,0.00019753,2]
[359840507,1746366643731,-450.0,0.00019753,2]
[359840508,1746366643741,-330.0,0.00019753,2]
[359840509,1746366643750,-482.0,0.00019753,2]
[359840510,1746366643759,-450.0,0.00019753,2]
[359840511,1746366643768,-450.0,0.00019753,2]
[359840512,1746366643778,-430.87,0.00019753,2]
[359840513,1746366643787,-409.55,0.00019753,2]
[359840514,1746366643796,-450.0,0.00019753,2]
[359840515,1746366643806,-450.0,0.00019753,2]
[359840516,1746366643815,-450.0,0.00019753,2]
[359840517,1746366643825,-450.0,0.00019753,2]
[359840518,1746366643834,-462.07,0.00019753,2]
[359840519,1746366643843,-450.0,0.00019753,2]
[359840520,1746366643852,-450.0,0.00019753,2]
[359840521,1746366643862,-221.34,0.00019753,2]
[359840522,1746366643871,-494.98248221,0.00019753,2]
[359840523,1746366643880,-450.0,0.00019753,2]
[359840524,1746366643890,-450.0,0.00019753,2]
[359840525,1746366643899,-526.44,0.00019753,2]
[359840526,1746366643909,-450.0,0.00019753,2]
[359840527,1746366643919,-837.11,0.00019753,2]
[359840528,1746366643928,-16859.5,0.00019753,2]
[359840529,1746366643937,-450.0,0.00019753,2]
[359840530,1746366643946,-967.44,0.00019753,2]
[359840531,1746366643955,-450.0,0.00019753,2]
[359840532,1746366643964,-3070.27,0.00019753,2]
[359840533,1746366643974,-450.0,0.00019753,2]
[359840534,1746366643984,-781.8,0.00019753,2]
[359840535,1746366643994,-450.0,0.00019753,2]
[359840536,1746366644004,-450.0,0.00019753,2]
[359840537,1746366644013,-450.0,0.00019753,2]
[359840538,1746366644022,-450.0,0.00019753,2]
[359840539,1746366644032,-450.0,0.00019753,2]
[359840540,1746366644044,-450.0,0.00019753,2]
[359840541,1746366644054,-450.0,0.00019753,2]
[359840542,1746366644063,-2760.02,0.00019753,2]
[359840543,1746366644073,-450.0,0.00019753,2]
[359840544,1746366644082,-450.0,0.00019753,2]
[359840545,1746366644093,-450.0,0.00019753,2]
[359840546,1746366644102,-450.0,0.00019753,2]
[359840547,1746366644111,-450.0,0.00019753,2]
[359840548,1746366644120,-450.0,0.00019753,2]
[359840549,1746366644131,-450.0,0.00019753,2]
[359840550,1746366644140,-228.41,0.00019753,2]
[359840551,1746366644150,-227.96,0.00019753,2]
[359840552,1746366644159,-450.0,0.00019753,2]
[359840553,1746366644168,-1313.76,0.00019753,2]
[359840554,1746366644177,-451.31,0.00019753,2]
[359840555,1746366644186,-450.0,0.00019753,2]
[359840556,1746366644195,-450.0,0.00019753,2]
[359840557,1746366644204,-450.0,0.00019753,2]
[359840558,1746366644214,-557.97,0.00019753,2]
[359840559,1746366644223,-580.05,0.00019753,2]
[359840560,1746366644232,-450.0,0.00019753,2]
[359840561,1746366644242,-450.0,0.00019753,2]
[359840562,1746366644251,-450.0,0.00019753,2]
[359840563,1746366644260,-1282.15,0.00019753,2]
[359840564,1746366644269,-450.0,0.00019753,2]
[359840565,1746366644279,-450.0,0.00019753,2]
[359840566,1746366644288,-450.0,0.00019753,2]
[359840567,1746366644298,-450.0,0.00019753,2]
[359840568,1746366644307,-30616.38,0.00019753,2]
[359840571,1746366644468,-1726.27,0.00019753,2]
[359840573,1746366644478,-450.0,0.00019753,2]
[359840575,1746366644488,-450.0,0.00019753,2]
[359840577,1746366644497,-532.29,0.00019753,2]
[359840579,1746366644507,-450.0,0.00019753,2]
[359840581,1746366644516,-450.0,0.00019753,2]
[359840583,1746366644525,-519.64,0.00019753,2]
[359840585,1746366644535,-450.0,0.00019753,2]
[359840587,1746366644545,-512.41,0.00019753,2]
[359840589,1746366644554,-450.0,0.00019753,2]
[359840591,1746366644564,-567.3,0.00019753,2]
[359840593,1746366644573,-450.0,0.00019753,2]
[359840596,1746366644582,-450.0,0.00019753,2]
[359840599,1746366644591,-450.0,0.00019753,2]
[359840601,1746366644600,-450.0,0.00019753,2]
[359840603,1746366644610,-1478.08,0.00019753,2]
[359840606,1746366644619,-450.0,0.00019753,2]
[359840608,1746366644628,-450.0,0.00019753,2]
[359840610,1746366644637,-450.0,0.00019753,2]
[359840613,1746366644646,-450.0,0.00019753,2]
[359840616,1746366644655,-609.91,0.00019753,2]
[359840619,1746366644664,-450.0,0.00019753,2]
[359840622,1746366644673,-450.0,0.00019753,2]
[359840625,1746366644684,-470.0,0.00019753,2]
[359840627,1746366644694,-450.0,0.00019753,2]
[359840629,1746366644703,-450.0,0.00019753,2]
[359840631,1746366644713,-1209.53,0.00019753,2]
[359840633,1746366644722,-563.02,0.00019753,2]
[359840636,1746366644732,-470.0,0.00019753,2]
[359840639,1746366644741,-450.0,0.00019753,2]
[359840641,1746366644750,-450.0,0.00019753,2]
[359840643,1746366644760,-450.0,0.00019753,2]
[359840645,1746366644769,-450.0,0.00019753,2]
[359840647,1746366644778,-554.45,0.00019753,2]
[359840649,1746366644788,-1267.04,0.00019753,2]
[359840651,1746366644797,-450.0,0.00019753,2]
[359840653,1746366644807,-234.36,0.00019753,2]
[359840655,1746366644816,-450.0,0.00019753,2]
[359840657,1746366644825,-156.74,0.00019753,2]
[359840659,1746366644834,-450.0,0.00019753,2]
[359840661,1746366644844,-450.0,0.00019753,2]
[359840663,1746366644853,-450.0,0.00019753,2]
[359840665,1746366644862,-565.28,0.00019753,2]
[359840667,1746366644871,-470.0,0.00019753,2]
[359840669,1746366644881,-450.0,0.00019753,2]
[359840671,1746366644890,-450.0,0.00019753,2]
[359840673,1746366644900,-450.0,0.00019753,2]
[359840675,1746366644909,-450.0,0.00019753,2]
[359840677,1746366644919,-169.66584874,0.00019768,2]
[359840679,1746366644928,-500.0,0.00019773,2]
[359840681,1746366644938,-387.77882415,0.00019773,2]
[359840683,1746366644947,-500.0,0.00019773,2]
[359840685,1746366644957,-166.0049904,0.00019773,2]
[359840687,1746366644966,-500.0,0.00019773,2]
[359840689,1746366644975,-500.0,0.00019773,2]
[359840691,1746366644985,-486.31580339,0.00019773,2]
[359840693,1746366644994,-359.79515288,0.00019773,2]
[359840695,1746366645004,-500.0,0.00019773,2]
[359840697,1746366645013,-500.99256753,0.00019773,2]
[359840699,1746366645022,-500.0,0.00019773,2]
[359840701,1746366645032,-500.0,0.00019773,2]
[359840703,1746366645044,-500.0,0.00019773,2]
[359840705,1746366645056,-500.0,0.00019773,2]
[359840707,1746366645065,-500.0,0.00019773,2]
[359840709,1746366645075,-500.0,0.00019773,2]
[359840711,1746366645085,-500.0,0.00019773,2]
[359840713,1746366645094,-558.63313616,0.00019773,2]
[359840715,1746366645104,-1948.91872391,0.00019773,2]
[359840719,1746366645113,-500.0,0.00019774,2]
[359840721,1746366645123,-2000.0,0.00019774,2]
[359840723,1746366645133,-200.0,0.00019774,2]
[359840725,1746366645142,-161.46725979,0.00019777,2]
[359840726,1746366645152,-6253.08103099,0.00019778,2]
[359840728,1746366645162,-500.0,0.00019779,2]
[359840730,1746366645171,-500.0,0.00019779,2]
[359840733,1746366645180,-151.0,0.0001978,2]
[359840736,1746366645189,-151.0,0.0001978,2]
[359840739,1746366645200,-175.760332,0.0001978,2]
[359840742,1746366645209,-151.0,0.0001978,2]
[359840744,1746366645218,-151.0,0.0001978,2]
[359840746,1746366645227,-151.0,0.0001978,2]
[359840748,1746366645236,-450.0,0.0001978,2]
[359840750,1746366645245,-285.07273808,0.0001978,2]
[359840752,1746366645255,-450.0,0.0001978,2]
[359840755,1746366645264,-450.0,0.0001978,2]
[359840758,1746366645273,-470.0,0.0001978,2]
[359840761,1746366645283,-450.0,0.0001978,2]
[359840764,1746366645292,-526.48,0.0001978,2]
[359840767,1746366645302,-500.76,0.0001978,2]
[359840770,1746366645311,-450.0,0.0001978,2]
[359840772,1746366645320,-483.22,0.0001978,2]
[359840774,1746366645329,-450.0,0.0001978,2]
[359840776,1746366645339,-450.0,0.0001978,2]
[359840778,1746366645348,-450.0,0.0001978,2]
[359840780,1746366645358,-450.0,0.0001978,2]
[359840782,1746366645368,-482.0,0.0001978,2]
[359840784,1746366645377,-450.0,0.0001978,2]
[359840786,1746366645387,-450.0,0.0001978,2]
[359840788,1746366645396,-450.0,0.0001978,2]
[359840790,1746366645406,-450.0,0.0001978,2]
[359840792,1746366645416,-450.0,0.0001978,2]
[359840794,1746366645425,-343.62,0.0001978,2]
[359840796,1746366645435,-450.0,0.0001978,2]
[359840798,1746366645445,-450.0,0.0001978,2]
[359840800,1746366645455,-450.0,0.0001978,2]
[359840802,1746366645465,-450.0,0.0001978,2]
[359840804,1746366645475,-837.11,0.0001978,2]
[359840806,1746366645485,-16859.5,0.0001978,2]
[359840808,1746366645494,-450.0,0.0001978,2]
[359840810,1746366645504,-967.44,0.0001978,2]
[359840812,1746366645513,-450.0,0.0001978,2]
[359840814,1746366645523,-3070.27,0.0001978,2]
[359840816,1746366645533,-781.8,0.0001978,2]
[359840818,1746366645542,-450.0,0.0001978,2]
[359840820,1746366645552,-490.14975957,0.0001978,2]
[359840822,1746366645561,-450.0,0.0001978,2]
[359840824,1746366645570,-450.0,0.0001978,2]
[359840826,1746366645580,-450.0,0.0001978,2]
[359840828,1746366645589,-340.09,0.0001978,2]
[359840830,1746366645599,-2760.02,0.0001978,2]
[359840832,1746366645608,-450.0,0.0001978,2]
[359840834,1746366645618,-450.0,0.0001978,2]
[359840836,1746366645627,-450.0,0.0001978,2]
[359840838,1746366645637,-450.0,0.0001978,2]
[359840840,1746366645646,-450.0,0.0001978,2]
[359840842,1746366645656,-450.0,0.0001978,2]
[359840844,1746366645665,-490.0,0.0001978,2]
[359840846,1746366645675,-1313.76,0.0001978,2]
[359840848,1746366645685,-451.31,0.0001978,2]
[359840850,1746366645694,-450.0,0.0001978,2]
[359840852,1746366645705,-490.0,0.0001978,2]
[359840854,1746366645714,-450.0,0.0001978,2]
[359840856,1746366645723,-207.38,0.0001978,2]
[359840858,1746366645733,-450.0,0.0001978,2]
[359840860,1746366645743,-598.99,0.0001978,2]
[359840862,1746366645752,-1282.15,0.0001978,2]
[359840864,1746366645761,-263.24,0.0001978,2]
[359840866,1746366645770,-578.79,0.0001978,2]
[359840868,1746366645779,-314.22,0.0001978,2]
[359840869,1746366645789,-410.94,0.0001978,2]
[359840872,1746366645799,-30616.38,0.0001978,2]
[359840874,1746366645809,-1726.27,0.0001978,2]
[359840876,1746366645821,-450.0,0.0001978,2]
[359840878,1746366645831,-450.0,0.0001978,2]
[359840880,1746366645840,-532.29,0.0001978,2]
[359840882,1746366645850,-450.0,0.0001978,2]
[359840885,1746366645859,-512.41,0.0001978,2]
[359840887,1746366645868,-450.0,0.0001978,2]
[359840890,1746366645878,-567.3,0.0001978,2]
[359840893,1746366645887,-450.0,0.0001978,2]
[359840896,1746366645896,-450.0,0.0001978,2]
[359840898,1746366645906,-450.0,0.0001978,2]
[359840900,1746366645915,-1478.08,0.0001978,2]
[359840902,1746366645925,-450.0,0.0001978,2]
[359840904,1746366645935,-173.06,0.0001978,2]
[359840906,1746366645944,-450.0,0.0001978,2]
[359840908,1746366645954,-452.92,0.0001978,2]
[359840910,1746366645963,-609.91,0.0001978,2]
[359840912,1746366645972,-450.0,0.0001978,2]
[359840914,1746366645982,-450.0,0.0001978,2]
[359840915,1746366645991,-450.0,0.0001978,2]
[359840917,1746366646001,-1209.53,0.0001978,2]
[359840919,1746366646010,-450.0,0.0001978,2]
[359840921,1746366646020,-450.0,0.0001978,2]
[359840923,1746366646030,-450.0,0.0001978,2]
[359840925,1746366646040,-450.0,0.0001978,2]
[359840927,1746366646052,-554.45,0.0001978,2]
[359840930,1746366646062,-1267.04,0.0001978,2]
[359840931,1746366646071,-450.0,0.0001978,2]
[359840933,1746366646081,-320.49748709,0.0001978,2]
[359840935,1746366646090,-450.0,0.0001978,2]
[359840937,1746366646100,-450.0,0.0001978,2]
[359840939,1746366646110,-450.0,0.0001978,2]
[359840941,1746366646119,-450.0,0.0001978,2]
[359840943,1746366646131,-500.0,0.00019781,2]
[359840945,1746366646141,-245.41902,0.00019782,2]